fUST/lending_fUST_20240906
["ID","MTS","AMOUNT","RATE_DAILY","PERIOD"]
[337280175,1725573125066,-500.0,0.00025689,2]
[337280176,1725573125076,-500.0,0.00025699,2]
[337280177,1725573125085,-900.0,0.00025719,2]
[337280178,1725573125095,-182.46374072,0.00025753,2]
[337280179,1725573125105,-500.0,0.00025753,2]
[337280180,1725573125114,-1061.25,0.00025753,2]
[337280181,1725573125124,-888.02,0.00025753,2]
[337280182,1725573125134,-500.0,0.00025753,2]
[337280183,1725573125145,-1260.83,0.00025753,2]
[337280184,1725573125155,-500.0,0.00025753,2]
[337280185,1725573125165,-500.0,0.00025753,2]
[337280186,1725573125175,-829.3,0.00025753,2]
[337280187,1725573125185,-500.0,0.00025753,2]
[337280188,1725573125195,-500.0,0.00025753,2]
[337280189,1725573125204,-265.13,0.00025753,2]
[337280190,1725573125214,-756.67,0.00025753,2]
[337280191,1725573125224,-500.0,0.00025753,2]
[337280192,1725573125234,-500.0,0.00025753,2]
[337280193,1725573125245,-325.05459195,0.00025753,2]
[337280194,1725573125260,-529.72,0.00025753,2]
[337280195,1725573125270,-500.0,0.00025753,2]
[337280196,1725573125280,-1089.23,0.00025753,2]
[337280197,1725573125291,-776.91,0.00025753,2]
[337280198,1725573125301,-371.01361284,0.00025753,2]
[337280199,1725573125311,-1257.36,0.00025753,2]
[337280200,1725573125320,-1799.22,0.00025753,2]
[337280201,1725573125331,-872.21,0.00025753,2]
[337280202,1725573125342,-500.0,0.00025753,2]
[337280203,1725573125352,-500.0,0.00025753,2]
[337280204,1725573125362,-690.94,0.00025753,2]
[337280205,1725573125373,-500.0,0.00025753,2]
[337280206,1725573125383,-500.0,0.00025753,2]
[337280207,1725573125393,-722.69,0.00025753,2]
[337280208,1725573125403,-581.63490891,0.00025753,2]
[337280209,1725573125412,-500.0,0.00025753,2]
[337280210,1725573125423,-1492.06,0.00025753,2]
[337280211,1725573125433,-500.0,0.00025753,2]
[337280212,1725573125443,-500.0,0.00025753,2]
[337280213,1725573125453,-500.0,0.00025753,2]
[337280214,1725573125464,-802.19,0.00025753,2]
[337280215,1725573125474,-552.14,0.00025753,2]
[337280216,1725573125484,-500.0,0.00025753,2]
[337280217,1725573125495,-990.72,0.00025753,2]
[337280218,1725573125505,-500.0,0.00025753,2]
[337280219,1725573125515,-967.82,0.00025753,2]
[337280220,1725573125525,-888.41,0.00025753,2]
[337280221,1725573125535,-500.0,0.00025753,2]
[337280222,1725573125549,-606.39,0.00025753,2]
[337280223,1725573125559,-500.0,0.00025753,2]
[337280224,1725573125569,-1160.38,0.00025753,2]
[337280225,1725573125591,-1034.45,0.00025753,2]
[337280226,1725573125600,-500.0,0.00025753,2]
[337280227,1725573125611,-646.98901974,0.00025753,2]
[337280228,1725573125621,-500.0,0.00025753,2]
[337280229,1725573125631,-1055.78,0.00025753,2]
[337280230,1725573125642,-709.32,0.00025753,2]
[337280231,1725573125652,-500.0,0.00025753,2]
[337280232,1725573125662,-528.03,0.00025753,2]
[337280233,1725573125673,-500.0,0.00025753,2]
[337280234,1725573125683,-500.0,0.00025753,2]
[337280235,1725573125695,-1309.6,0.00025753,2]
[337280236,1725573125707,-500.0,0.00025753,2]
[337280237,1725573125718,-597.29,0.00025753,2]
[337280238,1725573125727,-707.89,0.00025753,2]
[337280239,1725573125738,-500.0,0.00025753,2]
[337280240,1725573125749,-637.08,0.00025753,2]
[337280241,1725573125761,-500.0,0.00025753,2]
[337280242,1725573125771,-500.0,0.00025753,2]
[337280243,1725573125781,-500.0,0.00025753,2]
[337280244,1725573125792,-500.0,0.00025753,2]
[337280245,1725573125803,-1529.25,0.00025753,2]
[337280246,1725573125815,-512.48,0.00025753,2]
[337280247,1725573125827,-1497.88,0.00025753,2]
[337280248,1725573125839,-500.0,0.00025753,2]
[337280249,1725573125851,-3384.84,0.00025753,2]
[337280250,1725573125861,-1224.58,0.00025753,2]
[337280251,1725573125873,-500.0,0.00025753,2]
[337280252,1725573125885,-1508.59,0.00025753,2]
[337280253,1725573125903,-500.0,0.00025753,2]
[337280254,1725573125916,-948.48,0.00025753,2]
[337280255,1725573125926,-509.6,0.00025753,2]
[337280256,1725573125936,-500.0,0.00025753,2]
[337280257,1725573125946,-3334.83,0.00025753,2]
[337280258,1725573125956,-500.0,0.00025753,2]
[337280259,1725573125966,-956.86,0.00025753,2]
[337280260,1725573125976,-500.0,0.00025753,2]
[337280261,1725573125987,-500.0,0.00025753,2]
[337280262,1725573125997,-807.1,0.00025753,2]
[337280263,1725573126007,-500.0,0.00025753,2]
[337280264,1725573126018,-545.62,0.00025753,2]
[337280265,1725573126028,-500.0,0.00025753,2]
[337280266,1725573126040,-1234.38,0.00025753,2]
[337280267,1725573126050,-1688.93,0.00025753,2]
[337280268,1725573126062,-500.0,0.00025753,2]
[337280269,1725573126072,-500.0,0.00025753,2]
[337280270,1725573126083,-775.84,0.00025753,2]
[337280271,1725573126093,-6155.32,0.00025753,2]
[337280272,1725573126102,-251.83276276,0.00025753,2]
[337280273,1725573126112,-1513.75,0.00025753,2]
[337280274,1725573126122,-1384.94,0.00025753,2]
[337280275,1725573126132,-891.8,0.00025753,2]
[337280276,1725573126144,-1454.37,0.00025753,2]
[337280277,1725573126154,-727.07,0.00025753,2]
[337280278,1725573126166,-500.0,0.00025753,2]
[337280279,1725573126176,-803.53,0.00025753,2]
[337280280,1725573126186,-500.0,0.00025753,2]
[337280281,1725573126195,-3161.3,0.00025753,2]
[337280282,1725573126204,-1185.19,0.00025753,2]
[337280283,1725573126214,-831.41,0.00025753,2]
[337280284,1725573126225,-1174.57,0.00025753,2]
[337280285,1725573126234,-7144.8,0.00025753,2]
[337280286,1725573126246,-500.0,0.00025753,2]
[337280287,1725573126256,-500.0,0.00025753,2]
[337280288,1725573126268,-11733.4,0.00025753,2]
[337280289,1725573126278,-500.0,0.00025753,2]
[337280290,1725573126288,-4398.52,0.00025753,2]
[337280291,1725573126299,-1185.15,0.00025753,2]
[337280292,1725573126312,-544.5,0.00025753,2]
[337280293,1725573126472,-1466.8,0.00025753,2]
[337280294,1725573126484,-13227.74,0.00025753,2]
[337280295,1725573126495,-518.35813163,0.00025753,2]
[337280296,1725573126505,-8686.28,0.00025753,2]
[337280297,1725573126515,-1353.11,0.00025753,2]
[337280298,1725573126526,-500.0,0.00025753,2]
[337280299,1725573126538,-704.28,0.00025753,2]
[337280300,1725573126550,-590.9,0.00025753,2]
[337280301,1725573126562,-1233.53,0.00025753,2]
[337280302,1725573126572,-500.0,0.00025753,2]
[337280303,1725573126584,-1358.39,0.00025753,2]
[337280304,1725573126596,-900.4,0.00025753,2]
[337280305,1725573126607,-823.63,0.00025753,2]
[337280306,1725573126618,-509.12,0.00025753,2]
[337280307,1725573126629,-7723.59,0.00025753,2]
[337280308,1725573126640,-1103.42,0.00025753,2]
[337280309,1725573126653,-628.33,0.00025753,2]
[337280310,1725573126665,-536.0,0.00025753,2]
[337280311,1725573126676,-500.0,0.00025753,2]
[337280312,1725573126686,-2578.29,0.00025753,2]
[337280313,1725573126696,-500.0,0.00025753,2]
[337280314,1725573126706,-500.0,0.00025753,2]
[337280315,1725573126716,-1133.56,0.00025753,2]
[337280316,1725573126725,-1129.73,0.00025753,2]
[337280317,1725573126737,-1144.17,0.00025753,2]
[337280318,1725573126747,-938.87,0.00025753,2]
[337280319,1725573126759,-3954.36,0.00025753,2]
[337280320,1725573126769,-500.0,0.00025753,2]
[337280321,1725573126779,-563.72,0.00025753,2]
[337280322,1725573126789,-500.0,0.00025753,2]
[337280323,1725573126799,-500.0,0.00025753,2]
[337280324,1725573126809,-828.83,0.00025753,2]
[337280325,1725573126819,-7650.67,0.00025753,2]
[337280326,1725573126830,-686.81,0.00025753,2]
[337280327,1725573126840,-638.15,0.00025753,2]
[337280328,1725573126850,-195.05865284,0.00025753,2]
[337280329,1725573126859,-500.0,0.00025753,2]
[337280330,1725573126868,-970.45,0.00025753,2]
[337280331,1725573126878,-500.0,0.00025753,2]
[337280332,1725573126888,-875.36,0.00025753,2]
[337280333,1725573126899,-1709.21,0.00025753,2]
[337280334,1725573126908,-5424.64,0.00025753,2]
[337280335,1725573126920,-1320.86,0.00025753,2]
[337280336,1725573126930,-646.37,0.00025753,2]
[337280337,1725573126940,-777.39,0.00025753,2]
[337280338,1725573126950,-4959.4,0.00025753,2]
[337280339,1725573126959,-1196.83,0.00025753,2]
[337280340,1725573126968,-589.02,0.00025753,2]
[337280341,1725573126977,-191.55789363,0.00025753,2]
[337280342,1725573126987,-500.0,0.00025753,2]
[337280343,1725573126996,-948.09,0.00025753,2]
[337280344,1725573127006,-500.0,0.00025753,2]
[337280345,1725573127015,-946.95,0.00025753,2]
[337280346,1725573127025,-6005.41,0.00025753,2]
[337280347,1725573127035,-1557.31,0.00025753,2]
[337280348,1725573127044,-7130.97,0.00025753,2]
[337280349,1725573127054,-983.46,0.00025753,2]
[337280350,1725573127063,-788.94,0.00025753,2]
[337280351,1725573127073,-1361.66,0.00025753,2]
[337280352,1725573127082,-3476.04,0.00025753,2]
[337280353,1725573127092,-745.29,0.00025753,2]
[337280354,1725573127101,-500.0,0.00025753,2]
[337280355,1725573127111,-500.0,0.00025753,2]
[337280356,1725573127121,-500.0,0.00025753,2]
[337280357,1725573127130,-1053.94,0.00025753,2]
[337280358,1725573127139,-500.0,0.00025753,2]
[337280359,1725573127150,-899.19,0.00025753,2]
[337280360,1725573127160,-1880.59,0.00025753,2]
[337280361,1725573127170,-563.87,0.00025753,2]
[337280362,1725573127179,-500.0,0.0002576,2]
[337280363,1725573127188,-208.1061349,0.0002578,2]
[337280364,1725573127198,-900.0,0.00025794,2]
[337280365,1725573127209,-153.0,0.00025802,2]
[337280366,1725573127219,-153.0,0.00025802,2]
[337280367,1725573127231,-153.0,0.00025802,2]
[337280368,1725573127242,-153.0,0.00025802,2]
[337280369,1725573127252,-900.0,0.00025816,2]
[337280370,1725573127261,-900.0,0.00025819,2]
[337280371,1725573127273,-523.61321774,0.00025897,2]
[337280372,1725573127284,-500.0,0.00025944,2]
[337280373,1725573127295,-150.0,0.00026,2]
[337280374,1725573127306,-523.79538641,0.00026,2]
[337280375,1725573127317,-2062.23,0.00026,14]
[337280376,1725573127327,-500.0,0.00026027,2]
[337280377,1725573127337,-1061.25,0.00026027,2]
[337280378,1725573127347,-888.02,0.00026027,2]
[337280379,1725573127358,-500.0,0.00026027,2]
[337280380,1725573127369,-1260.83,0.00026027,2]
[337280381,1725573127380,-432.04,0.00026027,2]
[337280382,1725573127391,-829.3,0.00026027,2]
[337280383,1725573127403,-500.0,0.00026027,2]
[337280384,1725573127414,-500.0,0.00026027,2]
[337280385,1725573127425,-756.67,0.00026027,2]
[337280386,1725573127436,-500.0,0.00026027,2]
[337280387,1725573127446,-500.0,0.00026027,2]
[337280388,1725573127457,-529.72,0.00026027,2]
[337280389,1725573127468,-500.0,0.00026027,2]
[337280390,1725573127480,-1089.23,0.00026027,2]
[337280391,1725573127491,-776.91,0.00026027,2]
[337280392,1725573127501,-1257.36,0.00026027,2]
[337280393,1725573127513,-1799.22,0.00026027,2]
[337280394,1725573127523,-872.21,0.00026027,2]
[337280395,1725573127535,-500.0,0.00026027,2]
[337280396,1725573127549,-500.0,0.00026027,2]
[337280397,1725573127560,-690.94,0.00026027,2]
[337280398,1725573127570,-500.0,0.00026027,2]
[337280399,1725573127582,-500.0,0.00026027,2]
[337280400,1725573127591,-722.69,0.00026027,2]
[337280401,1725573127602,-500.0,0.00026027,2]
[337280402,1725573127613,-1492.06,0.00026027,2]
[337280403,1725573127625,-500.0,0.00026027,2]
[337280404,1725573127635,-500.0,0.00026027,2]
[337280405,1725573127645,-538.14586176,0.00026027,2]
[337280406,1725573127658,-802.19,0.00026027,2]
[337280407,1725573127668,-552.14,0.00026027,2]
[337280408,1725573127679,-500.0,0.00026027,2]
[337280409,1725573127690,-990.72,0.00026027,2]
[337280410,1725573127701,-967.82,0.00026027,2]
[337280411,1725573127713,-888.41,0.00026027,2]
[337280412,1725573127723,-500.0,0.00026027,2]
[337280413,1725573127736,-606.39,0.00026027,2]
[337280414,1725573127746,-500.0,0.00026027,2]
[337280415,1725573127755,-1160.38,0.00026027,2]
[337280416,1725573127766,-1034.45,0.00026027,2]
[337280417,1725573127777,-500.0,0.00026027,2]
[337280418,1725573127788,-500.0,0.00026027,2]
[337280419,1725573127799,-1055.78,0.00026027,2]
[337280420,1725573127811,-709.32,0.00026027,2]
[337280421,1725573127821,-500.0,0.00026027,2]
[337280422,1725573127832,-528.03,0.00026027,2]
[337280423,1725573127845,-227.92237931,0.00026027,2]
[337280424,1725573127855,-500.0,0.00026027,2]
[337280425,1725573127867,-1309.6,0.00026027,2]
[337280426,1725573127879,-597.29,0.00026027,2]
[337280427,1725573127889,-707.89,0.00026027,2]
[337280428,1725573127901,-500.0,0.00026027,2]
[337280429,1725573127911,-637.08,0.00026027,2]
[337280430,1725573127922,-500.0,0.00026027,2]
[337280431,1725573127931,-500.0,0.00026027,2]
[337280432,1725573127942,-500.0,0.00026027,2]
[337280433,1725573127952,-1529.25,0.00026027,2]
[337280434,1725573127964,-512.48,0.00026027,2]
[337280435,1725573127975,-1497.88,0.00026027,2]
[337280436,1725573127986,-500.0,0.00026027,2]
[337280437,1725573127998,-3384.84,0.00026027,2]
[337280438,1725573128009,-1224.58,0.00026027,2]
[337280439,1725573128021,-500.0,0.00026027,2]
[337280440,1725573128031,-1508.59,0.00026027,2]
[337280441,1725573128041,-500.0,0.00026027,2]
[337280442,1725573128051,-948.48,0.00026027,2]
[337280443,1725573128062,-509.6,0.00026027,2]
[337280444,1725573128073,-500.0,0.00026027,2]
[337280445,1725573128084,-3334.83,0.00026027,2]
[337280446,1725573128095,-500.0,0.00026027,2]
[337280447,1725573128106,-956.86,0.00026027,2]
[337280448,1725573128118,-500.0,0.00026027,2]
[337280449,1725573128127,-500.0,0.00026027,2]
[337280450,1725573128138,-807.1,0.00026027,2]
[337280451,1725573128148,-500.0,0.00026027,2]
[337280452,1725573128158,-545.62,0.00026027,2]
[337280453,1725573128168,-500.0,0.00026027,2]
[337280454,1725573128177,-1234.38,0.00026027,2]
[337280455,1725573128187,-1688.93,0.00026027,2]
[337280456,1725573128196,-500.0,0.00026027,2]
[337280457,1725573128206,-500.0,0.00026027,2]
[337280458,1725573128216,-775.84,0.00026027,2]
[337280459,1725573128227,-6155.32,0.00026027,2]
[337280460,1725573128238,-1513.75,0.00026027,2]
[337280461,1725573128248,-1384.94,0.00026027,2]
[337280462,1725573128258,-891.8,0.00026027,2]
[337280463,1725573128267,-1454.37,0.00026027,2]
[337280464,1725573128277,-727.07,0.00026027,2]
[337280465,1725573128287,-502.0,0.00026027,2]
[337280466,1725573128299,-803.53,0.00026027,2]
[337280467,1725573128309,-152.68829573,0.00026027,2]
[337280468,1725573128319,-3161.3,0.00026027,2]
[337280469,1725573128330,-1185.19,0.00026027,2]
[337280470,1725573128342,-831.41,0.00026027,2]
[337280471,1725573128354,-1174.57,0.00026027,2]
[337280472,1725573128365,-500.0,0.00026027,2]
[337280473,1725573128376,-7144.8,0.00026027,2]
[337280474,1725573128387,-500.0,0.00026027,2]
[337280475,1725573128399,-11733.4,0.00026027,2]
[337280476,1725573128415,-500.0,0.00026027,2]
[337280477,1725573128427,-4398.52,0.00026027,2]
[337280478,1725573128439,-1185.15,0.00026027,2]
[337280479,1725573128450,-544.5,0.00026027,2]
[337280480,1725573128459,-1466.8,0.00026027,2]
[337280481,1725573128469,-13227.74,0.00026027,2]
[337280482,1725573128479,-8686.28,0.00026027,2]
[337280483,1725573128490,-1353.11,0.00026027,2]
[337280484,1725573128501,-500.0,0.00026027,2]
[337280485,1725573128512,-704.28,0.00026027,2]
[337280486,1725573128521,-590.9,0.00026027,2]
[337280487,1725573128533,-1233.53,0.00026027,2]
[337280488,1725573128553,-500.0,0.00026027,2]
[337280489,1725573128569,-1358.39,0.00026027,2]
[337280490,1725573128580,-900.4,0.00026027,2]
[337280491,1725573128591,-823.63,0.00026027,2]
[337280492,1725573128602,-509.12,0.00026027,2]
[337280493,1725573128611,-7723.59,0.00026027,2]
[337280494,1725573128622,-1103.42,0.00026027,2]
[337280495,1725573128633,-628.33,0.00026027,2]
[337280496,1725573128645,-500.0,0.00026027,2]
[337280497,1725573128658,-2578.29,0.00026027,2]
[337280498,1725573128669,-500.0,0.00026027,2]
[337280499,1725573128681,-500.0,0.00026027,2]
[337280500,1725573128693,-1133.56,0.00026027,2]
[337280501,1725573128703,-1129.73,0.00026027,2]
[337280502,1725573128714,-1144.17,0.00026027,2]
[337280503,1725573128723,-938.87,0.00026027,2]
[337280504,1725573128734,-3954.36,0.00026027,2]
[337280505,1725573128745,-500.0,0.00026027,2]
[337280506,1725573128755,-563.72,0.00026027,2]
[337280507,1725573128766,-385.03524964,0.00026027,2]
[337280508,1725573128776,-828.83,0.00026027,2]
[337280509,1725573128787,-7650.67,0.00026027,2]
[337280510,1725573128797,-638.15,0.00026027,2]
[337280511,1725573128808,-686.81,0.00026027,2]
[337280512,1725573128817,-500.0,0.00026027,2]
[337280513,1725573128829,-970.45,0.00026027,2]
[337280514,1725573128840,-500.0,0.00026027,2]
[337280515,1725573128853,-875.36,0.00026027,2]
[337280516,1725573128864,-1709.21,0.00026027,2]
[337280517,1725573128875,-5424.64,0.00026027,2]
[337280518,1725573128887,-1320.86,0.00026027,2]
[337280519,1725573128901,-777.39,0.00026027,2]
[337280520,1725573128912,-646.37,0.00026027,2]
[337280521,1725573128922,-4959.4,0.00026027,2]
[337280522,1725573128933,-1196.83,0.00026027,2]
[337280523,1725573128943,-589.02,0.00026027,2]
[337280524,1725573128952,-500.0,0.00026027,2]
[337280525,1725573128962,-948.09,0.00026027,2]
[337280526,1725573128975,-500.0,0.00026027,2]
[337280527,1725573128985,-946.95,0.00026027,2]
[337280528,1725573128996,-6005.41,0.00026027,2]
[337280529,1725573129007,-1557.31,0.00026027,2]
[337280530,1725573129017,-7130.97,0.00026027,2]
[337280531,1725573129028,-983.46,0.00026027,2]
[337280532,1725573129040,-788.94,0.00026027,2]
[337280533,1725573129050,-1361.66,0.00026027,2]
[337280534,1725573129062,-3476.04,0.00026027,2]
[337280535,1725573129072,-745.29,0.00026027,2]
[337280536,1725573129084,-500.0,0.00026027,2]
[337280537,1725573129094,-500.0,0.00026027,2]
[337280538,1725573129104,-500.0,0.00026027,2]
[337280539,1725573129114,-1053.94,0.00026027,2]
[337280540,1725573129123,-500.0,0.00026027,2]
[337280541,1725573129133,-899.19,0.00026027,2]
[337280542,1725573129142,-1880.59,0.00026027,2]
[337280543,1725573129157,-563.87,0.00026027,2]
[337280544,1725573129168,-900.0,0.00026072,2]
[337280545,1725573129179,-2592.51886373,0.00026175,2]
[337280546,1725573129189,-900.0,0.00026236,2]
[337280547,1725573129199,-500.0,0.00026272,2]
[337280548,1725573129210,-500.0,0.00026276,2]
[337280549,1725573129221,-500.0,0.00026301,2]
[337280550,1725573129232,-1061.25,0.00026301,2]
[337280551,1725573129244,-888.02,0.00026301,2]
[337280552,1725573129253,-500.0,0.00026301,2]
[337280553,1725573129263,-1260.83,0.00026301,2]
[337280554,1725573129272,-829.3,0.00026301,2]
[337280555,1725573129281,-500.0,0.00026301,2]
[337280556,1725573129291,-500.0,0.00026301,2]
[337280557,1725573129301,-756.67,0.00026301,2]
[337280558,1725573129311,-574.40839794,0.00026301,2]
[337280559,1725573129320,-500.0,0.00026301,2]
[337280560,1725573129330,-529.72,0.00026301,2]
[337280561,1725573129339,-500.0,0.00026301,2]
[337280562,1725573129349,-1089.23,0.00026301,2]
[337280563,1725573129359,-776.91,0.00026301,2]
[337280564,1725573129369,-1257.36,0.00026301,2]
[337280565,1725573129378,-1799.22,0.00026301,2]
[337280566,1725573129388,-872.21,0.00026301,2]
[337280567,1725573129401,-500.0,0.00026301,2]
[337280568,1725573129416,-216.6638896,0.00026301,2]
[337280569,1725573129425,-690.94,0.00026301,2]
[337280570,1725573129434,-500.0,0.00026301,2]
[337280571,1725573129443,-500.0,0.00026301,2]
[337280572,1725573129453,-722.69,0.00026301,2]
[337280573,1725573129463,-500.0,0.00026301,2]
[337280574,1725573129475,-1492.06,0.00026301,2]
[337280575,1725573129625,-500.0,0.00026301,2]
[337280576,1725573129637,-500.0,0.00026301,2]
[337280577,1725573129652,-802.19,0.00026301,2]
[337280578,1725573129662,-552.14,0.00026301,2]
[337280579,1725573129674,-500.0,0.00026301,2]
[337280580,1725573129685,-990.72,0.00026301,2]
[337280581,1725573129696,-967.82,0.00026301,2]
[337280582,1725573129707,-888.41,0.00026301,2]
[337280583,1725573129717,-500.0,0.00026301,2]
[337280584,1725573129728,-606.39,0.00026301,2]
[337280585,1725573129738,-500.0,0.00026301,2]
[337280586,1725573129749,-1160.38,0.00026301,2]
[337280587,1725573129759,-1034.45,0.00026301,2]
[337280588,1725573129770,-507.97253027,0.00026301,2]
[337280589,1725573129781,-500.0,0.00026301,2]
[337280590,1725573129794,-1055.78,0.00026301,2]
[337280591,1725573129806,-709.32,0.00026301,2]
[337280592,1725573129817,-381.32175817,0.00026301,2]
[337280593,1725573129830,-528.03,0.00026301,2]
[337280594,1725573129842,-500.0,0.00026301,2]
[337280595,1725573129854,-1309.6,0.00026301,2]
[337280596,1725573129865,-597.29,0.00026301,2]
[337280597,1725573129876,-707.89,0.00026301,2]
[337280598,1725573129887,-500.0,0.00026301,2]
[337280599,1725573129903,-637.08,0.00026301,2]
[337280600,1725573129912,-500.0,0.00026301,2]
[337280601,1725573129923,-500.0,0.00026301,2]
[337280602,1725573129934,-500.0,0.00026301,2]
[337280603,1725573129945,-1529.25,0.00026301,2]
[337280604,1725573129956,-512.48,0.00026301,2]
[337280605,1725573129966,-1497.88,0.00026301,2]
[337280606,1725573129976,-500.0,0.00026301,2]
[337280607,1725573129985,-3384.84,0.00026301,2]
[337280608,1725573129995,-1224.58,0.00026301,2]
[337280609,1725573130004,-500.0,0.00026301,2]
[337280610,1725573130015,-1508.59,0.00026301,2]
[337280611,1725573130024,-500.0,0.00026301,2]
[337280612,1725573130034,-948.48,0.00026301,2]
[337280613,1725573130044,-509.6,0.00026301,2]
[337280614,1725573130054,-500.0,0.00026301,2]
[337280615,1725573130063,-500.0,0.00026301,2]
[337280616,1725573130072,-3334.83,0.00026301,2]
[337280617,1725573130082,-500.0,0.00026301,2]
[337280618,1725573130091,-956.86,0.00026301,2]
[337280619,1725573130101,-500.0,0.00026301,2]
[337280620,1725573130111,-807.1,0.00026301,2]
[337280621,1725573130121,-500.0,0.00026301,2]
[337280622,1725573130130,-545.62,0.00026301,2]
[337280623,1725573130141,-500.0,0.00026301,2]
[337280624,1725573130152,-1234.38,0.00026301,2]
[337280625,1725573130162,-1688.93,0.00026301,2]
[337280626,1725573130172,-500.0,0.00026301,2]
[337280627,1725573130182,-500.0,0.00026301,2]
[337280628,1725573130192,-775.84,0.00026301,2]
[337280629,1725573130201,-6155.32,0.00026301,2]
[337280630,1725573130211,-1513.75,0.00026301,2]
[337280631,1725573130222,-1384.94,0.00026301,2]
[337280632,1725573130232,-891.8,0.00026301,2]
[337280633,1725573130242,-1454.37,0.00026301,2]
[337280634,1725573130253,-727.07,0.00026301,2]
[337280635,1725573130264,-803.53,0.00026301,2]
[337280636,1725573130275,-3161.3,0.00026301,2]
[337280637,1725573130285,-1185.19,0.00026301,2]
[337280638,1725573130297,-831.41,0.00026301,2]
[337280639,1725573130309,-1174.57,0.00026301,2]
[337280640,1725573130319,-500.0,0.00026301,2]
[337280641,1725573130330,-7144.8,0.00026301,2]
[337280642,1725573130341,-500.0,0.00026301,2]
[337280643,1725573130353,-11733.4,0.00026301,2]
[337280644,1725573130364,-228.32985437,0.00026301,2]
[337280645,1725573130375,-4398.52,0.00026301,2]
[337280646,1725573130388,-1185.15,0.00026301,2]
[337280647,1725573130401,-544.5,0.00026301,2]
[337280648,1725573130411,-1466.8,0.00026301,2]
[337280649,1725573130423,-13227.74,0.00026301,2]
[337280650,1725573130433,-8686.28,0.00026301,2]
[337280651,1725573130444,-1353.11,0.00026301,2]
[337280652,1725573130455,-500.0,0.00026301,2]
[337280653,1725573130466,-704.28,0.00026301,2]
[337280654,1725573130477,-590.9,0.00026301,2]
[337280655,1725573130487,-1233.53,0.00026301,2]
[337280656,1725573130498,-500.0,0.00026301,2]
[337280657,1725573130508,-1358.39,0.00026301,2]
[337280658,1725573130520,-900.4,0.00026301,2]
[337280659,1725573130533,-823.63,0.00026301,2]
[337280660,1725573130752,-509.12,0.00026301,2]
[337280661,1725573130763,-7723.59,0.00026301,2]
[337280662,1725573130776,-1103.42,0.00026301,2]
[337280663,1725573130786,-628.33,0.00026301,2]
[337280664,1725573130798,-500.0,0.00026301,2]
[337280665,1725573130810,-2578.29,0.00026301,2]
[337280666,1725573130821,-500.0,0.00026301,2]
[337280667,1725573130830,-267.17962071,0.00026301,2]
[337280668,1725573130841,-1133.56,0.00026301,2]
[337280669,1725573130852,-1129.73,0.00026301,2]
[337280670,1725573130863,-1144.17,0.00026301,2]
[337280671,1725573130876,-938.87,0.00026301,2]
[337280672,1725573130888,-3954.36,0.00026301,2]
[337280673,1725573130901,-540.89573672,0.00026301,2]
[337280674,1725573130913,-563.72,0.00026301,2]